fUST/lending_fUST_20250702
["ID","MTS","AMOUNT","RATE_DAILY","PERIOD"]
[368977621,1751419855702,-14000.0,0.00023596,4]
[368977622,1751419855711,-230.32585361,0.000236,3]
[368977623,1751419855721,-160.0,0.000236,3]
[368977624,1751419855730,-12571.40790328,0.000236,3]
[368977625,1751419855740,-7000.0,0.00023606,4]
[368977626,1751419855749,-7000.0,0.00023628,4]
[368977627,1751419855760,-1091.09586195,0.00023693,9]
[368977628,1751419855770,-585.02,0.000237,2]
[368977629,1751419855779,-521.14326656,0.00023837,2]
[368977630,1751419855789,-838.885191,0.00023863,2]
[368977631,1751419855799,-771.60558772,0.00023888,2]
[368977632,1751419855808,-3280.3990873,0.000239,2]
[368977633,1751419855818,-410.9722303,0.00023918,2]
[368977634,1751419855828,-521.14326656,0.00023937,2]
[368977635,1751419855838,-160.0,0.00023942,4]
[368977636,1751419855848,-1091.09586195,0.00023969,10]
[368977637,1751419855860,-1553.02571943,0.00024,2]
[368977638,1751419855870,-331.70266884,0.00024,14]
[368977639,1751419855881,-524.61914904,0.00024,3]
[368977640,1751419855892,-524.61914904,0.00024,3]
[368977641,1751419855903,-521.14326656,0.00024037,2]
[368977642,1751419855913,-524.26,0.000241,7]
[368977643,1751419855922,-9641.88,0.000241,2]
[368977644,1751419855932,-151.0,0.000241,5]
[368977645,1751419855942,-521.14326656,0.00024137,2]
[368977646,1751419855952,-521.14326656,0.00024237,2]
[368977647,1751419855963,-1091.09586195,0.00024245,10]
[368977648,1751419855973,-406.0,0.0002432,2]
[368977649,1751419855983,-521.14326656,0.00024337,2]
[368977650,1751419855993,-521.14326656,0.00024437,2]
[368977651,1751419856002,-1091.09586195,0.00024521,11]
[368977652,1751419856012,-521.14326656,0.00024537,2]
[368977653,1751419856022,-521.14326656,0.00024637,2]
[368977654,1751419856031,-168.0,0.00024658,2]
[368977655,1751419856043,-212.8386663,0.000247,7]
[368977656,1751419856052,-621.997654,0.00024715,4]
[368977657,1751419856063,-2591.21836889,0.00024734,2]
[368977658,1751419856071,-521.14326656,0.00024737,2]
[368977659,1751419856082,-1091.09586195,0.00024797,11]
[368977660,1751419856091,-400.62,0.000248,7]
[368977661,1751419856102,-325.04188242,0.000248,2]
[368977662,1751419856112,-521.14326656,0.00024837,2]
[368977663,1751419856122,-3269.23340131,0.00024837,2]
[368977664,1751419856133,-3269.23340129,0.00024866,2]
[368977665,1751419856144,-223.0315306,0.00024873,2]
[368977666,1751419856155,-1000.0,0.00024876,2]
[368977667,1751419856166,-1000.0,0.00024876,2]
[368977668,1751419856175,-1000.0,0.00024876,2]
[368977669,1751419856185,-1000.0,0.00024876,2]
[368977670,1751419856195,-1000.0,0.00024876,2]
[368977671,1751419856205,-520.0,0.00024876,2]
[368977672,1751419856217,-3269.23340129,0.00024895,2]
[368977673,1751419856228,-122106.253,0.00024899,7]
[368977674,1751419856238,-316007.18349478,0.000249,2]
[368977675,1751419856327,-2448.31875038,0.000249,2]
[368977676,1751419856339,-2750.73635981,0.000249,2]
[368977677,1751419856351,-2061.57370036,0.000249,2]
[368977678,1751419856362,-644.33175654,0.000249,2]
[368977679,1751419856374,-1618.36866227,0.000249,2]
[368977680,1751419856386,-503.91642827,0.000249,2]
[368977681,1751419856398,-6674.48553553,0.000249,2]
[368977682,1751419856410,-210040.0,0.000249,2]
[368977683,1751419856421,-770.1172821,0.000249,2]
[368977684,1751419856434,-210000.0,0.000249,2]
[368977685,1751419856447,-257.3189741,0.000249,2]
[368977686,1751419856458,-4746.40369109,0.000249,2]
[368977687,1751419856470,-1601.06569073,0.000249,2]
[368977688,1751419856482,-2878.40571304,0.000249,2]
[368977689,1751419856493,-151.882799,0.000249,7]
[368977690,1751419856503,-151.0,0.000249,7]
[368977691,1751419856608,-3269.23340129,0.00024924,2]
[368977692,1751419856617,-521.14326656,0.00024937,2]
[368977693,1751419856627,-2689.03715127,0.0002495,2]
[368977694,1751419856639,-409.11763214,0.0002495,2]
[368977695,1751419856649,-318.79059201,0.00024953,2]
[368977696,1751419856754,-461.81497957,0.0001701,2]
[368977697,1751419856764,-460.0,0.0001701,2]
[368977698,1751419856774,-151.0,0.0001701,2]
[368977699,1751419856783,-462.27360815,0.0001701,2]
[368977700,1751419856793,-151.0,0.0001701,2]
[368977701,1751419856803,-460.0,0.00017284,2]
[368977702,1751419856812,-225.30059382,0.00017558,2]
[368977703,1751419856828,-810.27166094,0.00017558,2]
[368977704,1751419856839,-484.52555447,0.00017558,2]
[368977705,1751419858673,-107.79219077,0.00017558,2]
[368977706,1751419858683,-482.97276283,0.00017558,2]
[368977707,1751419858692,-1511.2350464,0.00017832,2]
[368977708,1751419858704,-116.6549536,0.00017832,2]
[368977709,1751419858713,-1627.89,0.00018106,2]
[368977710,1751419858723,-1627.89,0.0001838,2]
[368977711,1751419858732,-1627.89,0.00018654,2]
[368977712,1751419858742,-1627.89,0.00018928,2]
[368977713,1751419858751,-1627.89,0.00019202,2]
[368977714,1751419858760,-2950.44280928,0.00024953,2]
[368977715,1751419858770,-3269.23340129,0.00024981,2]
[368977716,1751419858779,-1650.50590019,0.0002499,30]
[368977717,1751419858789,-161.66338967,0.00025,60]
[368977718,1751419858798,-207.17458898,0.00025,120]
[368977719,1751419858808,-3203.84440432,0.00025,7]
[368977720,1751419858818,-157.99176732,0.00025,120]
[368977721,1751419858828,-1061.53678535,0.00025,2]
[368977722,1751419858838,-1847.68753023,0.00025,2]
[368977723,1751419858847,-2679.50809822,0.00025,10]
[368977724,1751419858858,-524.61914904,0.00025,10]
[368977725,1751419858867,-3269.23340129,0.0002501,2]
[368977726,1751419858877,-521.14326656,0.00025037,2]
[368977727,1751419858886,-3269.23340129,0.00025039,2]
[368977728,1751419858897,-2200.0,0.00025045,2]
[368977729,1751419858906,-3269.23340129,0.00025068,2]
[368977730,1751419858916,-1091.09586195,0.00025072,12]
[368977731,1751419858927,-155.3458,0.00025076,2]
[368977732,1751419858936,-168.0,0.00025078,2]
[368977733,1751419858947,-3269.23340129,0.00025097,2]
[368977734,1751419858957,-3807.91,0.000251,7]
[368977735,1751419858968,-837.20943635,0.000251,7]
[368977736,1751419858977,-215.01728679,0.000251,7]
[368977737,1751419858988,-192.18,0.000251,31]
[368977738,1751419858997,-643.0,0.000251,2]
[368977739,1751419859007,-410.9722303,0.00025104,2]
[368977740,1751419859016,-521.14326656,0.00025137,2]
[368977741,1751419859025,-155.3458,0.00025192,30]
[368977742,1751419859035,-151.0,0.00025195,7]
[368977743,1751419859045,-152.252602,0.00025195,7]
[368977744,1751419859055,-151.0,0.00025195,7]
[368977745,1751419859064,-151.0,0.00025195,7]
[368977746,1751419859073,-151.0,0.00025195,7]
[368977747,1751419859083,-151.0,0.00025195,7]
[368977748,1751419859093,-151.0,0.00025195,7]
[368977749,1751419859103,-151.0,0.00025195,7]
[368977750,1751419859114,-297.589839,0.00025195,7]
[368977751,1751419859123,-151.0,0.00025195,7]
[368977752,1751419859132,-151.0,0.00025195,7]
[368977753,1751419859142,-175.706882,0.00025195,7]
[368977754,1751419859152,-151.0,0.00025195,7]
[368977755,1751419859162,-151.0,0.00025195,7]
[368977756,1751419859171,-151.0,0.00025195,7]
[368977757,1751419859180,-151.0,0.00025195,7]
[368977758,1751419859190,-151.0,0.00025195,7]
[368977759,1751419859199,-216.663774,0.00025195,7]
[368977760,1751419859208,-151.0,0.00025195,7]
[368977761,1751419859217,-151.0,0.00025195,7]
[368977762,1751419859227,-151.0,0.00025195,7]
[368977763,1751419859236,-151.0,0.00025195,7]
[368977764,1751419859245,-151.0,0.00025195,7]
[368977765,1751419859256,-151.0,0.00025195,7]
[368977766,1751419859265,-151.0,0.00025195,7]
[368977767,1751419859274,-151.0,0.00025195,7]
[368977768,1751419859283,-151.0,0.00025195,7]
[368977769,1751419859292,-151.0,0.00025195,7]
[368977770,1751419859302,-151.0,0.00025195,7]
[368977771,1751419859311,-151.0,0.00025195,7]
[368977772,1751419859320,-228.761476,0.00025195,7]
[368977773,1751419859329,-151.0,0.00025195,2]
[368977774,1751419859339,-151.0,0.00025195,2]
[368977775,1751419859348,-252.911701,0.00025195,7]
[368977776,1751419859379,-252.911701,0.00025195,7]
[368977777,1751419859388,-252.911701,0.00025195,7]
[368977778,1751419859397,-252.911701,0.00025195,7]
[368977779,1751419859406,-252.911701,0.00025195,7]
[368977780,1751419859416,-252.911701,0.00025195,7]
[368977781,1751419859425,-252.911701,0.00025195,7]
[368977782,1751419859434,-252.911701,0.00025195,7]
[368977783,1751419859443,-252.911701,0.00025195,7]
[368977784,1751419859452,-252.911701,0.00025195,7]
[368977785,1751419859461,-252.911701,0.00025195,7]
[368977786,1751419859471,-252.911701,0.00025195,7]
[368977787,1751419859480,-252.911701,0.00025195,7]
[368977788,1751419859489,-252.911701,0.00025195,7]
[368977789,1751419859499,-252.911701,0.00025195,7]
[368977790,1751419859508,-252.911701,0.00025195,7]
[368977791,1751419859518,-252.911701,0.00025195,7]
[368977792,1751419859527,-252.911701,0.00025195,7]
[368977793,1751419859536,-252.911701,0.00025195,7]
[368977794,1751419859546,-252.911697,0.00025195,7]
[368977795,1751419859555,-151.0,0.00025197,7]
[368977796,1751419859564,-151.0,0.00025197,7]
[368977797,1751419859574,-151.0,0.00025197,7]
[368977798,1751419859583,-151.0,0.00025197,7]
[368977799,1751419859592,-151.0,0.00025197,7]
[368977800,1751419859607,-151.0,0.00025197,7]
[368977801,1751419859617,-151.0,0.00025197,7]
[368977802,1751419859626,-151.0,0.00025197,7]
[368977803,1751419859635,-151.0,0.00025197,7]
[368977804,1751419859645,-151.0,0.00025197,7]
[368977805,1751419859655,-151.0,0.00025197,7]
[368977806,1751419859663,-297.211128,0.00025197,7]
[368977807,1751419859674,-155.678166,0.00025197,7]
[368977808,1751419859683,-151.0,0.00025197,7]
[368977809,1751419859693,-151.0,0.00025197,7]
[368977810,1751419859702,-151.0,0.00025197,7]
[368977811,1751419859712,-151.0,0.00025197,7]
[368977812,1751419859721,-151.0,0.00025197,7]
[368977813,1751419859730,-151.0,0.00025197,7]
[368977814,1751419859740,-2000.0,0.000252,2]
[368977815,1751419859749,-2000.0,0.000252,2]
[368977816,1751419859759,-2000.0,0.000252,2]
[368977817,1751419859767,-155.195304,0.000252,7]
[368977818,1751419859777,-151.0,0.000252,7]
[368977819,1751419859787,-151.0,0.000252,7]
[368977820,1751419859796,-151.0,0.000252,7]
[368977821,1751419859806,-151.0,0.000252,7]
[368977822,1751419859816,-151.0,0.000252,7]
[368977823,1751419859825,-151.0,0.000252,7]
[368977824,1751419859834,-151.0,0.000252,7]
[368977825,1751419859843,-151.0,0.000252,7]
[368977826,1751419859853,-150.0,0.000252,5]
[368977827,1751419859862,-1971.68093,0.000252,5]
[368977828,1751419859871,-155.3458,0.000252,30]
[368977829,1751419859881,-155.3458,0.000252,20]
[368977830,1751419859890,-837.20943635,0.000252,30]
[368977831,1751419859900,-215.01728679,0.000252,30]
[368977832,1751419859909,-837.20943635,0.000252,7]
[368977833,1751419859919,-215.01728679,0.000252,7]
[368977834,1751419859929,-201.0,0.000252,13]
[368977835,1751419859939,-394.20983992,0.00025204,2]
[368977836,1751419859949,-5275.74689765,0.00025204,2]
[368977837,1751419859960,-151.0,0.00025204,7]
[368977838,1751419860059,-151.0,0.00025204,7]
[368977839,1751419860070,-151.897093,0.00025204,7]
[368977840,1751419860080,-81846.96838786,0.00025204,20]
[368977841,1751419860094,-7519.56825467,0.00025204,20]
[368977842,1751419860107,-507.81705216,0.00025204,20]
[368977843,1751419860119,-1365.28998582,0.00025204,20]
[368977844,1751419860286,-7846.93397981,0.00016812,2]
[368977845,1751419860299,-460.0,0.0001701,2]
[368977846,1751419860309,-461.15618289,0.0001701,2]
[368977847,1751419860318,-460.0,0.00017284,2]
[368977848,1751419860328,-460.0,0.00017558,2]
[368977849,1751419860338,-460.0,0.00017832,2]
[368977850,1751419860348,-460.0,0.00018106,2]
[368977851,1751419860359,-344.80657583,0.0001838,2]
[368977852,1751419860370,-129.9987414,0.0001838,2]
[368977853,1751419860380,-1627.89,0.00019476,2]
[368977854,1751419860391,-1627.89,0.0001975,2]
[368977855,1751419860401,-1499.57576228,0.00020024,2]
[368977856,1751419860414,-128.31423772,0.00020024,2]
[368977857,1751419860424,-1627.89,0.00020298,2]
[368977858,1751419860435,-1627.89,0.00020572,2]
[368977859,1751419860446,-1627.89,0.00020846,2]
[368977860,1751419860457,-1627.89,0.0002112,2]
[368977861,1751419860467,-1146.20908759,0.00021394,2]
[368977862,1751419860482,-481.68091241,0.00021394,2]
[368977863,1751419860493,-1627.89,0.00021668,2]
[368977864,1751419860502,-7620.14416235,0.00025204,20]
[368977865,1751419860927,-463.98960938,0.0001701,2]
[368977866,1751419860938,-230.643696,0.00021942,2]
[368977867,1751419860950,-1397.246304,0.00021942,2]
[368977868,1751419860960,-1627.89,0.00022216,2]
[368977869,1751419860971,-1627.89,0.0002249,2]
[368977870,1751419860982,-1627.89,0.00022764,2]
[368977871,1751419860992,-1627.89,0.00023038,2]
[368977872,1751419861002,-1627.9548379,0.00023312,2]
[368977873,1751419861011,-5194.44867331,0.00025204,20]
[368977874,1751419861050,-19.92892712,0.00025204,20]
[368977879,1751420024362,239.605312,0.00013699,2]
[368977880,1751420055133,166.0,0.00024658,120]
[368977881,1751420061139,-157.0,0.0001681,2]
[368977882,1751420105024,2753.5605115,0.00016136,2]
[368977883,1751420264627,-7.8153706,0.0001681,2]
[368977884,1751420264649,-1039.1846294,0.0001681,2]
[368977885,1751420275022,16512.6881845,0.00015986,2]
[368977887,1751420296695,-400.0,0.000255,120]
[368977888,1751420296718,-124.61914904,0.00025691,120]
[368977889,1751420296822,-75.38085096,0.00025691,120]
[368977890,1751420296847,-1084.05856904,0.00026,120]
[368977891,1751420296951,-915.94143096,0.00026,120]
[368977892,1751420296973,-243.49797904,0.00026,120]
[368977893,1751420297059,-200.0,0.00026,120]
[368977894,1751420297148,-21.50202096,0.00026,120]
[368977895,1751420297173,-200.0,0.0002634,120]
[368977896,1751420297195,-400.0,0.000265,120]
[368977897,1751420297218,-200.0,0.00026642,120]
[368977898,1751420297240,-337.93738904,0.00027,120]
[368977899,1751420297334,-821.50202096,0.00027,120]
[368977900,1751420297358,-337.93738904,0.00027,120]
[368977901,1751420297798,-1159.43941,0.00027,120]
[368977902,1751420297889,-502.62320096,0.00027,120]
[368977903,1751420297911,-656.81620904,0.000271,120]
[368977904,1751420298002,-200.0,0.000271,120]
[368977905,1751420298096,-200.0,0.000271,120]
[368977906,1751420298194,-102.62320096,0.000271,120]
[368977907,1751420298217,-1056.81620904,0.000272,120]
[368977908,1751420298313,-102.62320096,0.000272,120]
[368977909,1751420298410,-1159.43941,0.000273,120]
[368977910,1751420332984,-89.27408378,0.0001681,2]
[368977911,1751420333007,-92.72591622,0.0001681,2]
[368977917,1751420529433,-209.0,0.00016808,2]
[368977918,1751420554973,155.0,0.000272,120]
[368977919,1751420586786,184.14861374,0.00016402,2]
[368977920,1751420597740,-74.10794913,0.00016808,2]
[368977921,1751420597762,-151.89205087,0.0001681,2]
[368977922,1751420689557,3950.06669066,0.00015909,2]
[368977923,1751420689586,20949.93330934,0.00015909,2]
[368977924,1751420698701,8109.0504848,0.00015909,2]
[368977925,1751420713063,941.01620586,0.000168,2]
[368977926,1751420713088,4058.98379414,0.000168,2]
[368977927,1751420729667,5000.0,0.000168,2]
[368977928,1751420730131,-164.8153706,0.0001686,2]
[368977929,1751420730153,-675.62928723,0.000169,2]
[368977930,1751420730175,-300.0,0.00016907,2]
[368977931,1751420730195,-300.0,0.00016907,2]
[368977932,1751420730215,-300.0,0.00016907,2]
[368977933,1751420730236,-1200.0,0.00016907,2]
[368977934,1751420730257,-300.0,0.00016907,2]
[368977935,1751420730277,-503.34110794,0.00016908,2]
[368977936,1751420730299,-540.05435633,0.00016908,2]
[368977937,1751420730318,-291.56713123,0.00016908,2]
[368977938,1751420730338,-501.72147496,0.00016908,2]
[368977939,1751420730360,-169.30663117,0.00016908,2]
[368977940,1751420730381,-48.81233733,0.00016908,2]
[368977941,1751420752082,-451.18766267,0.00016908,2]
[368977942,1751420752104,-396.68996534,0.00016908,2]
[368977943,1751420752125,-185.83581262,0.00016908,2]
[368977944,1751420752148,-91.44216917,0.00016908,2]
[368977945,1751420790125,164.998935,0.00015935,2]
[368977946,1751420790332,164.998935,0.00015961,2]
[368977947,1751420790799,164.998935,0.00015988,2]
[368977948,1751420790972,164.998935,0.00016014,2]
[368977949,1751420792539,-175.0,0.0001681,2]
[368977950,1751420828081,-164.8153706,0.00016808,2]
[368977951,1751420828102,-42.03254779,0.0001681,2]
[368977952,1751420828124,-164.8153706,0.0001681,2]
[368977953,1751420828145,-687.0,0.00016908,2]
[368977954,1751420828166,-300.0,0.00016908,2]
[368977955,1751420828187,-89.51146878,0.00016909,2]
[368977956,1751420836084,-295.47830615,0.00016909,2]
[368977957,1751420849100,-219.08350211,0.00016909,2]
[368977958,1751420849126,-500.0,0.00016909,2]
[368977959,1751420849148,-139.727327,0.00016909,2]
[368977960,1751420887976,205.19340008,0.00016403,2]
[368977961,1751420951081,-360.272673,0.00016909,2]
[368977962,1751420951106,-125.24800398,0.00016909,2]
[368977963,1751420952080,-164.33408221,0.00016909,2]
[368977964,1751420952104,-116.27594846,0.00016909,2]
[368977965,1751420968094,-195.22108552,0.0001681,2]
[368977966,1751420985843,186.10234015,0.00016652,2]
[368977967,1751421003212,1793.1963533,0.00016001,2]
[368977968,1751421016077,823.292728,0.00016001,2]
[368978022,1751421032836,-46.05392254,0.0001681,2]
[368978024,1751421032845,-86.06017473,0.00016909,2]
[368978026,1751421032855,-300.0,0.00016909,2]
[368978028,1751421032865,-300.0,0.00016909,2]
[368978030,1751421032874,-249.0,0.00016909,2]
[368978032,1751421032883,-1200.0,0.00016909,2]
[368978034,1751421032893,-576.57665401,0.00016909,2]
[368978036,1751421032903,-235.52222433,0.00016909,2]
[368978038,1751421032912,-300.0,0.00016909,2]
[368978040,1751421032922,-463.88898157,0.0001691,2]
[368978042,1751421032933,-461.83059584,0.0001691,2]
[368978044,1751421032943,-461.74431043,0.0001691,2]
[368978047,1751421032954,-401.94868864,0.0001691,2]
[368978049,1751421032963,-461.31246061,0.0001691,2]
[368978051,1751421032973,-460.0,0.0001691,2]
[368978053,1751421032987,-296.68315824,0.0001691,2]
[368978055,1751421032997,-463.82443889,0.0001691,2]
[368978057,1751421033006,-460.0,0.0001691,2]
[368978059,1751421033015,-460.0,0.0001691,2]
[368978061,1751421033025,-460.0,0.0001691,2]
[368978063,1751421033035,-460.0,0.0001691,2]
[368978065,1751421033045,-460.83884125,0.0001691,2]
[368978067,1751421033057,-191.42937646,0.0001691,2]
[368978070,1751421033076,-464.77730809,0.0001691,2]
[368978072,1751421033087,-460.0,0.0001691,2]
[368978074,1751421033097,-460.0,0.0001691,2]
[368978076,1751421033106,-460.0,0.0001691,2]
[368978078,1751421033116,-460.0,0.0001691,2]
[368978080,1751421033126,-465.84642421,0.0001691,2]
[368978082,1751421033136,-465.16175868,0.0001691,2]
[368978084,1751421033147,-495.20018525,0.0001691,2]
[368978086,1751421033157,-460.0,0.0001691,2]
[368978089,1751421033167,-460.0,0.0001691,2]
[368978091,1751421033176,-460.0,0.0001691,2]
[368978093,1751421033187,-601.76220272,0.0001691,2]
[368978095,1751421033197,-465.14384193,0.0001691,2]
[368978097,1751421033206,-465.9107912,0.0001691,2]
[368978099,1751421033217,-460.0,0.0001691,2]
[368978101,1751421033227,-460.0,0.0001691,2]
[368978103,1751421033237,-464.62160868,0.0001691,2]
[368978105,1751421033247,-460.0,0.0001691,2]
[368978107,1751421033257,-460.0,0.0001691,2]
[368978109,1751421033266,-460.0,0.0001691,2]
[368978111,1751421033276,-460.0,0.0001691,2]
[368978113,1751421033285,-460.0,0.0001691,2]
[368978115,1751421033295,-513.60731503,0.0001691,2]
[368978117,1751421033305,-460.0,0.0001691,2]
[368978119,1751421033315,-460.0,0.0001691,2]
[368978121,1751421033324,-460.0,0.0001691,2]
[368978123,1751421033334,-471.65860924,0.0001691,2]
[368978125,1751421033344,-465.0673557,0.0001691,2]
[368978127,1751421033353,-467.85736477,0.0001691,2]
[368978129,1751421033363,-463.03252441,0.0001691,2]
[368978131,1751421033374,-466.90082687,0.0001691,2]
[368978133,1751421033383,-602.72604522,0.0001691,2]
[368978135,1751421033395,-460.0,0.0001691,2]
[368978137,1751421033406,-460.0,0.0001691,2]
[368978139,1751421033418,-461.84254165,0.0001691,2]
[368978141,1751421033428,-463.30413316,0.0001691,2]
[368978144,1751421033439,-482.14208393,0.0001691,2]
[368978146,1751421033450,-460.0,0.0001691,2]
[368978148,1751421033460,-467.57681789,0.0001691,2]
[368978150,1751421033470,-460.0,0.0001691,2]
[368978152,1751421033481,-462.4654626,0.0001691,2]
[368978154,1751421033491,-462.2468845,0.0001691,2]
[368978156,1751421033502,-462.84265016,0.0001691,2]
[368978158,1751421033512,-464.84777886,0.0001691,2]
[368978160,1751421033523,-355.57757962,0.0001691,2]
[368978162,1751421033533,-460.0,0.0001691,2]
[368978164,1751421033543,-460.0,0.0001691,2]
[368978166,1751421033553,-460.0,0.0001691,2]
[368978169,1751421033563,-460.0,0.0001691,2]
[368978170,1751421033573,-843.47,0.0001691,2]
[368978173,1751421033582,-460.0,0.0001691,2]
[368978175,1751421033592,-461.74536494,0.0001691,2]
[368978177,1751421033602,-460.0,0.0001691,2]
[368978179,1751421033612,-460.0,0.0001691,2]
[368978181,1751421033622,-460.0,0.0001691,2]
[368978183,1751421033632,-460.0,0.0001691,2]
[368978185,1751421033642,-463.16024724,0.0001691,2]
[368978187,1751421033653,-460.0,0.0001691,2]
[368978189,1751421033664,-460.0,0.0001691,2]
[368978191,1751421033674,-465.51306468,0.0001691,2]
[368978193,1751421033683,-460.0,0.0001691,2]
[368978196,1751421033698,-460.0,0.0001691,2]
[368978198,1751421033707,-460.0,0.0001691,2]
[368978199,1751421033717,-219.86850742,0.0001691,2]
[368978201,1751421033726,-460.0,0.0001691,2]
[368978203,1751421033736,-462.63721839,0.0001691,2]
[368978205,1751421033746,-726.87,0.0001691,2]
[368978206,1751421033756,-460.35167968,0.0001691,2]
[368978208,1751421033766,-460.0,0.0001691,2]
[368978210,1751421033776,-461.1834939,0.0001691,2]
[368978212,1751421033786,-460.45241493,0.0001691,2]
[368978214,1751421033796,-460.0,0.0001691,2]
[368978216,1751421033806,-462.60503239,0.0001691,2]
[368978218,1751421033816,-460.79547383,0.0001691,2]
[368978220,1751421033825,-461.0439068,0.0001691,2]
[368978222,1751421033835,-826.09,0.0001691,2]
[368978223,1751421033846,-227.18697588,0.0001691,2]
[368978225,1751421033856,-461.82871343,0.0001691,2]
[368978227,1751421033866,-461.01821264,0.0001691,2]
[368978229,1751421033877,-461.27186295,0.0001691,2]
[368978231,1751421033888,-460.0,0.0001691,2]
[368978233,1751421033898,-460.0,0.0001691,2]
[368978235,1751421033908,-327.65812869,0.0001691,2]
[368978236,1751421033917,-460.0,0.0001691,2]
[368978238,1751421033927,-460.0,0.0001691,2]
[368978240,1751421033937,-460.0,0.0001691,2]
[368978242,1751421033947,-463.29025526,0.0001691,2]
[368978244,1751421033957,-460.76414114,0.0001691,2]
[368978246,1751421033968,-467.82209726,0.0001691,2]
[368978248,1751421033981,-460.0,0.0001691,2]
[368978250,1751421033991,-465.86274678,0.0001691,2]
[368978252,1751421034001,-367.8427844,0.0001691,2]
[368978254,1751421034011,-466.69549569,0.0001691,2]
[368978256,1751421034021,-473.42019128,0.0001691,2]
[368978258,1751421034031,-460.0,0.0001691,2]
[368978260,1751421034040,-460.0,0.0001691,2]
[368978262,1751421034050,-460.0,0.0001691,2]
[368978263,1751421034060,-460.56418064,0.0001691,2]
[368978265,1751421034069,-464.88926031,0.0001691,2]
[368978267,1751421034079,-461.06191391,0.0001691,2]
[368978269,1751421034088,-460.0,0.0001691,2]
[368978271,1751421034099,-460.0,0.0001691,2]
[368978273,1751421034108,-461.94869308,0.0001691,2]
[368978274,1751421034118,-460.0,0.0001691,2]
[368978276,1751421034127,-460.0,0.0001691,2]
[368978278,1751421034137,-787.68,0.0001691,2]
[368978280,1751421034147,-460.0,0.0001691,2]
[368978282,1751421034157,-462.98265447,0.0001691,2]
[368978284,1751421034167,-460.0,0.0001691,2]
[368978286,1751421034177,-460.0,0.0001691,2]
[368978287,1751421034186,-460.0,0.0001691,2]
[368978289,1751421034196,-464.13707206,0.0001691,2]
[368978291,1751421034206,-473.28894185,0.0001691,2]
[368978293,1751421034215,-460.0,0.0001691,2]
[368978295,1751421034225,-460.0,0.0001691,2]
[368978297,1751421034235,-460.0,0.0001691,2]
[368978299,1751421034245,-460.0,0.0001691,2]
[368978300,1751421034255,-460.0,0.0001691,2]
[368978302,1751421034264,-460.0,0.0001691,2]
[368978304,1751421034274,-460.0,0.0001691,2]
[368978306,1751421034283,-462.68481202,0.0001691,2]
[368978308,1751421034293,-460.0,0.0001691,2]
[368978310,1751421034303,-502.65662961,0.0001691,2]
[368978312,1751421034315,-394.64585301,0.0001691,2]
[368978313,1751421034324,-460.80706682,0.0001691,2]
[368978315,1751421034334,-461.3634659,0.0001691,2]
[368978317,1751421034343,-276.07367052,0.0001691,2]
[368978333,1751421034510,-460.0,0.0001691,2]
[368978335,1751421034520,-470.26550367,0.0001691,2]
[368978337,1751421034530,-460.0,0.0001691,2]
[368978339,1751421034539,-460.0,0.0001691,2]
[368978341,1751421034548,-220.59545229,0.0001691,2]
[368978342,1751421034557,-460.0,0.0001691,2]
[368978344,1751421034567,-460.0,0.0001691,2]
[368978346,1751421034576,-1054.41,0.0001691,2]
[368978348,1751421034586,-464.87167436,0.0001691,2]
[368978350,1751421034595,-460.0,0.0001691,2]
[368978352,1751421034604,-460.0,0.0001691,2]
[368978353,1751421034613,-460.0,0.0001691,2]